fUSD/lending_fUSD_20241009
["ID","MTS","AMOUNT","RATE_DAILY","PERIOD"]
[340079197,1728474652956,-2048.58,0.0004,30]
[340079198,1728474652965,-500.0,0.0004,2]
[340079199,1728474652975,-500.0,0.0004,30]
[340079200,1728474652985,-511.47203147,0.0004,30]
[340079201,1728474652994,-500.0,0.0004,30]
[340079202,1728474653005,-438.65161066,0.0004,30]
[340079203,1728474653015,-500.0,0.0004,30]
[340079204,1728474653025,-404.5223675,0.0004,30]
[340079205,1728474653035,-500.0,0.0004,30]
[340079206,1728474653044,-500.0,0.0004,30]
[340079207,1728474653054,-500.0,0.0004,30]
[340079208,1728474653064,-500.0,0.0004,30]
[340079209,1728474653074,-1194.79,0.0004,30]
[340079210,1728474653083,-500.0,0.0004,30]
[340079211,1728474653094,-588.70328028,0.0004,30]
[340079212,1728474653103,-1534.88,0.0004,30]
[340079213,1728474653112,-500.0,0.0004,30]
[340079214,1728474653122,-500.0,0.0004,30]
[340079215,1728474653131,-500.0,0.0004,30]
[340079216,1728474653141,-500.0,0.0004,30]
[340079217,1728474653150,-500.0,0.0004,30]
[340079218,1728474653160,-500.0,0.0004,30]
[340079219,1728474653169,-1943.47,0.0004,30]
[340079220,1728474653178,-1063.79,0.0004,30]
[340079221,1728474653188,-500.0,0.0004,30]
[340079222,1728474653197,-700.0,0.0004,30]
[340079223,1728474653207,-500.0,0.0004,30]
[340079224,1728474653216,-500.0,0.0004,30]
[340079225,1728474653226,-500.0,0.0004,30]
[340079226,1728474653236,-500.0,0.0004,30]
[340079227,1728474653245,-500.0,0.0004,30]
[340079228,1728474653254,-500.0,0.0004,30]
[340079229,1728474653268,-500.0,0.0004,30]
[340079230,1728474653278,-1251.76,0.0004,30]
[340079231,1728474653288,-500.0,0.0004,30]
[340079232,1728474653297,-500.0,0.0004,30]
[340079233,1728474653307,-682.14,0.0004,30]
[340079234,1728474653316,-1200.4,0.0004,30]
[340079235,1728474653325,-500.0,0.0004,30]
[340079236,1728474653335,-500.0,0.0004,30]
[340079237,1728474653345,-245.43433833,0.0004,30]
[340079238,1728474653354,-500.0,0.0004,30]
[340079239,1728474653365,-500.0,0.0004,30]
[340079240,1728474653375,-456.22790779,0.0004,30]
[340079241,1728474653384,-500.0,0.0004,30]
[340079242,1728474653393,-500.0,0.0004,30]
[340079243,1728474653403,-500.0,0.0004,30]
[340079244,1728474653412,-500.0,0.0004,30]
[340079245,1728474653422,-500.0,0.0004,30]
[340079246,1728474653431,-500.0,0.0004,30]
[340079247,1728474653441,-500.0,0.0004,30]
[340079248,1728474653450,-500.0,0.0004,30]
[340079249,1728474653459,-191.60355907,0.0004,30]
[340079250,1728474653469,-500.0,0.0004,30]
[340079251,1728474653478,-578.02,0.0004,30]
[340079252,1728474653488,-500.0,0.0004,30]
[340079253,1728474653497,-701.09,0.0004,30]
[340079254,1728474653507,-500.0,0.0004,30]
[340079255,1728474653517,-500.0,0.0004,30]
[340079256,1728474653526,-500.0,0.0004,30]
[340079257,1728474653536,-500.0,0.0004,30]
[340079258,1728474653545,-500.0,0.0004,30]
[340079259,1728474653554,-500.0,0.0004,30]
[340079260,1728474653563,-500.0,0.0004,30]
[340079261,1728474653572,-500.0,0.0004,30]
[340079262,1728474653582,-500.0,0.0004,30]
[340079263,1728474653591,-500.0,0.0004,30]
[340079264,1728474653601,-500.0,0.0004,30]
[340079265,1728474653612,-500.0,0.0004,30]
[340079266,1728474653622,-1129.05,0.0004,7]
[340079267,1728474653631,-274.25980609,0.0004,30]
[340079268,1728474653641,-500.0,0.0004,30]
[340079269,1728474653651,-544.2,0.0004,30]
[340079270,1728474653660,-2326.13,0.0004,30]
[340079271,1728474653670,-500.0,0.0004,30]
[340079272,1728474653679,-1235.1,0.0004,30]
[340079273,1728474653689,-442.16372821,0.0004,30]
[340079274,1728474653699,-500.0,0.0004,30]
[340079275,1728474653708,-500.0,0.0004,30]
[340079276,1728474653806,-500.0,0.0004,30]
[340079277,1728474653816,-500.0,0.0004,30]
[340079278,1728474653826,-776.22,0.0004,30]
[340079279,1728474653835,-878.23,0.0004,30]
[340079280,1728474653845,-333.2,0.0004,30]
[340079281,1728474653854,-649.1,0.0004,30]
[340079282,1728474653864,-500.0,0.0004,30]
[340079283,1728474653874,-500.0,0.0004,30]
[340079284,1728474653883,-500.0,0.0004,30]
[340079285,1728474653893,-156.1833214,0.0004,30]
[340079286,1728474653902,-4280.23,0.0004,30]
[340079287,1728474653911,-500.0,0.0004,30]
[340079288,1728474653920,-647.65372209,0.0004,30]
[340079289,1728474653930,-554.85,0.0004,30]
[340079290,1728474653939,-500.0,0.0004,30]
[340079291,1728474653949,-1591.91,0.0004,30]
[340079292,1728474653959,-500.0,0.0004,30]
[340079293,1728474653968,-548.38,0.0004,30]
[340079294,1728474653978,-500.0,0.0004,30]
[340079295,1728474653987,-500.0,0.0004,30]
[340079296,1728474653997,-500.0,0.0004,30]
[340079297,1728474654007,-1790.13,0.0004,30]
[340079298,1728474654016,-500.0,0.0004,30]
[340079299,1728474654025,-681.86,0.0004,30]
[340079300,1728474654035,-500.0,0.0004,30]
[340079301,1728474654044,-843.32,0.0004,30]
[340079302,1728474654054,-500.0,0.0004,30]
[340079303,1728474654064,-390.66438583,0.0004,30]
[340079304,1728474654074,-500.0,0.0004,30]
[340079305,1728474654084,-604.97,0.0004,30]
[340079306,1728474654094,-543.16734415,0.0004,30]
[340079307,1728474654104,-500.0,0.0004,30]
[340079308,1728474654114,-500.0,0.0004,30]
[340079309,1728474654124,-1647.37,0.0004,30]
[340079310,1728474654133,-677.99,0.0004,30]
[340079311,1728474654142,-500.0,0.0004,30]
[340079312,1728474654151,-500.0,0.0004,30]
[340079313,1728474654161,-500.0,0.0004,30]
[340079314,1728474654170,-500.0,0.0004,30]
[340079315,1728474654180,-500.0,0.0004,30]
[340079316,1728474654189,-500.0,0.0004,30]
[340079317,1728474654199,-500.0,0.0004,30]
[340079318,1728474654209,-500.0,0.0004,30]
[340079319,1728474654218,-1538.29,0.0004,30]
[340079320,1728474654227,-500.0,0.0004,30]
[340079321,1728474654238,-500.0,0.0004,30]
[340079322,1728474654248,-500.0,0.0004,30]
[340079323,1728474654258,-500.0,0.0004,30]
[340079324,1728474654271,-2791.23,0.0004,30]
[340079325,1728474654281,-514.19,0.0004,30]
[340079326,1728474654291,-500.0,0.0004,30]
[340079327,1728474654300,-1386.33,0.0004,30]
[340079328,1728474654310,-500.0,0.0004,30]
[340079329,1728474654319,-700.1,0.0004,30]
[340079330,1728474654329,-1315.33,0.0004,30]
[340079331,1728474654339,-417.22327464,0.0004,30]
[340079332,1728474654349,-500.0,0.0004,30]
[340079333,1728474654360,-500.0,0.0004,30]
[340079334,1728474654369,-587.62,0.0004,30]
[340079335,1728474654379,-500.0,0.0004,30]
[340079336,1728474654388,-500.0,0.0004,30]
[340079337,1728474654398,-500.0,0.0004,30]
[340079338,1728474654409,-171.28578827,0.0004,30]
[340079339,1728474654419,-500.0,0.0004,30]
[340079340,1728474654428,-648.89,0.0004,30]
[340079341,1728474654438,-500.0,0.0004,30]
[340079342,1728474654447,-500.0,0.0004,30]
[340079343,1728474654456,-502.91890959,0.0004,30]
[340079344,1728474654465,-500.0,0.0004,30]
[340079345,1728474654475,-500.0,0.0004,30]
[340079346,1728474654484,-500.0,0.0004,30]
[340079347,1728474654494,-2775.18,0.0004,30]
[340079348,1728474654503,-500.0,0.0004,2]
[340079349,1728474654513,-555.53,0.0004,30]
[340079350,1728474654522,-500.0,0.0004,30]
[340079351,1728474654532,-627.06,0.0004,30]
[340079352,1728474654541,-1709.31,0.0004,30]
[340079353,1728474654550,-500.0,0.0004,30]
[340079354,1728474654560,-500.0,0.0004,30]
[340079355,1728474654569,-748.87,0.0004,30]
[340079356,1728474654579,-515.16108172,0.0004,30]
[340079357,1728474654588,-500.0,0.0004,30]
[340079358,1728474654598,-1645.12,0.0004,30]
[340079359,1728474654607,-500.0,0.0004,30]
[340079360,1728474654616,-500.0,0.0004,30]
[340079361,1728474654626,-500.0,0.0004,30]
[340079362,1728474654635,-500.0,0.0004,30]
[340079363,1728474654644,-500.0,0.0004,30]
[340079364,1728474654653,-500.0,0.0004,30]
[340079365,1728474654662,-500.0,0.0004,30]
[340079366,1728474654672,-593.51,0.0004,30]
[340079367,1728474654681,-500.0,0.0004,30]
[340079368,1728474654691,-500.0,0.0004,30]
[340079369,1728474654700,-500.0,0.0004,7]
[340079370,1728474654709,-500.0,0.0004,30]
[340079371,1728474654719,-1016.84,0.0004,30]
[340079372,1728474654728,-500.0,0.0004,30]
[340079373,1728474654737,-500.0,0.0004,30]
[340079374,1728474654747,-1821.33,0.0004,30]
[340079375,1728474654756,-500.0,0.0004,30]
[340079376,1728474654766,-500.0,0.0004,30]
[340079377,1728474654775,-500.0,0.0004,30]
[340079378,1728474654784,-471.2224189,0.0004,30]
[340079379,1728474654794,-990.39,0.0004,30]
[340079380,1728474654803,-500.0,0.0004,30]
[340079381,1728474654812,-5329.07,0.0004,30]
[340079382,1728474654821,-500.0,0.0004,30]
[340079383,1728474654831,-743.21,0.0004,30]
[340079384,1728474654840,-500.0,0.0004,30]
[340079385,1728474654849,-580.88,0.0004,30]
[340079386,1728474654859,-500.0,0.0004,30]
[340079387,1728474654868,-557.49,0.0004,30]
[340079388,1728474654877,-500.0,0.0004,30]
[340079389,1728474654886,-500.0,0.0004,30]
[340079390,1728474654896,-500.0,0.0004,30]
[340079391,1728474654905,-500.0,0.0004,30]
[340079392,1728474654914,-500.0,0.0004,30]
[340079393,1728474654924,-1516.28,0.0004,30]
[340079394,1728474654933,-500.0,0.0004,30]
[340079395,1728474654943,-1601.85,0.0004,30]
[340079396,1728474654952,-6541.43,0.0004,30]
[340079397,1728474654962,-584.66210124,0.0004,30]
[340079398,1728474654971,-500.0,0.0004,30]
[340079399,1728474654980,-500.0,0.0004,30]
[340079400,1728474654990,-511.66,0.0004,30]
[340079401,1728474654999,-500.0,0.0004,30]
[340079402,1728474655009,-500.0,0.0004,30]
[340079403,1728474655019,-500.0,0.0004,30]
[340079404,1728474655028,-3144.68,0.0004,30]
[340079405,1728474655037,-500.0,0.0004,30]
[340079406,1728474655047,-500.0,0.0004,30]
[340079407,1728474655056,-500.0,0.0004,30]
[340079408,1728474655066,-516.07,0.0004,30]
[340079409,1728474655075,-500.0,0.0004,30]
[340079410,1728474655085,-1660.54,0.0004,30]
[340079411,1728474655099,-500.0,0.0004,30]
[340079412,1728474655109,-500.0,0.0004,30]
[340079413,1728474655118,-500.0,0.0004,30]
[340079414,1728474655127,-500.0,0.0004,30]
[340079415,1728474655136,-500.0,0.0004,30]
[340079416,1728474655146,-511.35,0.0004,30]
[340079417,1728474655155,-500.0,0.0004,30]
[340079418,1728474655164,-1623.1,0.0004,30]
[340079419,1728474655174,-375.68516339,0.0004,30]
[340079420,1728474655183,-1133.39,0.0004,30]
[340079421,1728474655193,-500.0,0.0004,30]
[340079422,1728474655202,-500.0,0.0004,30]
[340079423,1728474655212,-500.0,0.0004,30]
[340079424,1728474655222,-500.0,0.0004,30]
[340079425,1728474655231,-520.14,0.0004,30]
[340079426,1728474655241,-752.04,0.0004,30]
[340079427,1728474655250,-502.21643429,0.0004,30]
[340079428,1728474655345,-500.0,0.0004,30]
[340079429,1728474655356,-500.0,0.0004,30]
[340079430,1728474655365,-500.0,0.0004,30]
[340079431,1728474655375,-500.0,0.0004,30]
[340079432,1728474655384,-500.0,0.0004,30]
[340079433,1728474655394,-360.28270688,0.0004,30]
[340079434,1728474655403,-500.0,0.0004,30]
[340079435,1728474655413,-500.0,0.0004,30]
[340079436,1728474655422,-500.0,0.0004,30]
[340079437,1728474655432,-500.0,0.0004,30]
[340079438,1728474655441,-500.0,0.0004,30]
[340079439,1728474655450,-500.0,0.0004,30]
[340079440,1728474655459,-500.0,0.0004,30]
[340079441,1728474655469,-1187.39,0.0004,30]
[340079442,1728474655479,-6906.1,0.0004,30]
[340079443,1728474655488,-965.23,0.0004,30]
[340079444,1728474655499,-500.0,0.0004,30]
[340079445,1728474655508,-500.0,0.0004,30]
[340079446,1728474655519,-850.98,0.0004,30]
[340079447,1728474655528,-500.0,0.0004,30]
[340079448,1728474655537,-740.41,0.0004,30]
[340079449,1728474655546,-929.93,0.0004,30]
[340079450,1728474655556,-500.0,0.0004,30]
[340079451,1728474655565,-500.0,0.0004,30]
[340079452,1728474655575,-500.0,0.0004,30]
[340079453,1728474655584,-500.0,0.0004,30]
[340079454,1728474655595,-2338.34,0.0004,30]
[340079455,1728474655604,-500.0,0.0004,30]
[340079456,1728474655614,-500.0,0.0004,30]
[340079457,1728474655623,-500.0,0.0004,30]
[340079458,1728474655632,-5566.38,0.0004,30]
[340079459,1728474655641,-1204.18,0.0004,30]
[340079460,1728474655650,-500.0,0.0004,30]
[340079461,1728474655660,-500.0,0.0004,30]
[340079462,1728474655669,-500.0,0.0004,30]
[340079463,1728474655679,-500.0,0.0004,30]
[340079464,1728474655689,-500.0,0.0004,30]
[340079465,1728474655698,-500.0,0.0004,30]
[340079466,1728474655708,-500.0,0.0004,30]
[340079467,1728474655717,-500.0,0.0004,30]
[340079468,1728474655726,-500.0,0.0004,30]
[340079469,1728474655735,-500.0,0.0004,30]
[340079470,1728474655745,-500.0,0.0004,30]
[340079471,1728474655755,-888.83,0.0004,30]
[340079472,1728474655765,-500.0,0.0004,30]
[340079473,1728474655774,-500.0,0.0004,30]
[340079474,1728474655783,-500.0,0.0004,30]
[340079475,1728474655792,-952.39,0.0004,30]
[340079476,1728474655802,-500.0,0.0004,30]
[340079477,1728474655811,-806.49,0.0004,30]
[340079478,1728474655821,-500.0,0.0004,30]
[340079479,1728474655831,-637.2,0.0004,30]
[340079480,1728474655841,-500.0,0.0004,30]
[340079481,1728474655850,-500.0,0.0004,30]
[340079482,1728474655860,-500.0,0.0004,30]
[340079483,1728474655870,-500.0,0.0004,30]
[340079484,1728474655881,-500.0,0.0004,30]
[340079485,1728474655891,-500.0,0.0004,30]
[340079486,1728474655901,-1108.84,0.0004,30]
[340079487,1728474655910,-500.0,0.0004,30]
[340079488,1728474655920,-500.0,0.0004,30]
[340079489,1728474655931,-543.92462093,0.0004,30]
[340079490,1728474655941,-656.99,0.0004,30]
[340079491,1728474655952,-500.0,0.0004,30]
[340079492,1728474655962,-500.0,0.0004,30]
[340079493,1728474655972,-500.0,0.0004,30]
[340079494,1728474655982,-500.0,0.0004,30]
[340079495,1728474655991,-500.0,0.0004,30]
[340079496,1728474656001,-500.0,0.0004,30]
[340079497,1728474656011,-1838.69,0.0004,30]
[340079498,1728474656020,-919.89,0.0004,30]
[340079499,1728474656030,-500.0,0.0004,30]
[340079500,1728474656040,-1319.95,0.0004,14]
[340079501,1728474656049,-544.03,0.0004,30]
[340079502,1728474656059,-589.03,0.0004,30]
[340079503,1728474656069,-500.0,0.0004,30]
[340079504,1728474656078,-500.0,0.0004,30]
[340079505,1728474656088,-500.0,0.0004,30]
[340079506,1728474656098,-307.13274258,0.0004,30]
[340079507,1728474656108,-1370.58,0.0004,30]
[340079508,1728474656117,-500.0,0.0004,30]
[340079509,1728474656127,-461.5971482,0.0004,30]
[340079510,1728474656137,-500.0,0.0004,30]
[340079511,1728474656147,-525.42814141,0.0004,30]
[340079512,1728474656157,-500.0,0.0004,30]
[340079513,1728474656166,-500.0,0.0004,30]
[340079514,1728474656176,-500.0,0.0004,30]
[340079515,1728474656186,-197.1259804,0.0004,30]
[340079516,1728474656197,-500.0,0.0004,30]
[340079517,1728474656207,-570.96,0.0004,30]
[340079518,1728474656217,-500.0,0.0004,30]
[340079519,1728474656227,-623.82171274,0.0004,30]
[340079520,1728474656236,-1052.26,0.0004,30]
[340079521,1728474656246,-27071.03,0.0004,30]
[340079522,1728474656256,-500.0,0.0004,30]
[340079523,1728474656269,-500.0,0.0004,21]
[340079524,1728474656278,-500.0,0.0004,30]
[340079525,1728474656288,-500.0,0.0004,30]
[340079526,1728474656297,-2425.88,0.0004,30]
[340079527,1728474656307,-2218.3,0.0004,30]
[340079528,1728474656316,-956.91,0.0004,30]
[340079529,1728474656325,-500.0,0.0004,30]
[340079530,1728474656336,-500.0,0.0004,30]
[340079531,1728474656346,-194.95752441,0.00040447,120]
[340079532,1728474656356,-500.0,0.00040547,5]
[340079533,1728474656365,-500.0,0.00040547,30]
[340079534,1728474656375,-500.0,0.00040547,30]
[340079535,1728474656385,-500.0,0.00040547,30]
[340079536,1728474656397,-500.0,0.00040547,30]
[340079537,1728474656407,-2048.58,0.00040547,30]
[340079538,1728474656416,-500.0,0.00040547,2]
[340079539,1728474656425,-500.0,0.00040547,30]
[340079540,1728474656435,-500.0,0.00040547,30]
[340079541,1728474656445,-500.0,0.00040547,30]
[340079542,1728474656454,-500.0,0.00040547,30]
[340079543,1728474656465,-500.0,0.00040547,30]
[340079544,1728474656476,-500.0,0.00040547,30]
[340079545,1728474656486,-500.0,0.00040547,30]
[340079546,1728474656495,-500.0,0.00040547,30]
[340079547,1728474656504,-500.0,0.00040547,30]
[340079548,1728474656514,-1194.79,0.00040547,30]
[340079549,1728474656523,-500.0,0.00040547,30]
[340079550,1728474656532,-1534.88,0.00040547,30]
[340079551,1728474656542,-500.0,0.00040547,30]
[340079552,1728474656553,-500.0,0.00040547,30]
[340079553,1728474656563,-500.0,0.00040547,30]
[340079554,1728474656573,-500.0,0.00040547,30]
[340079555,1728474656582,-500.0,0.00040547,30]
[340079556,1728474656593,-500.0,0.00040547,30]
[340079557,1728474656602,-1943.47,0.00040547,30]
[340079558,1728474656611,-1063.79,0.00040547,30]
[340079559,1728474656621,-500.0,0.00040547,30]
[340079560,1728474656630,-700.0,0.00040547,30]
[340079561,1728474656639,-500.0,0.00040547,30]
[340079562,1728474656648,-500.0,0.00040547,30]
[340079563,1728474656658,-500.0,0.00040547,30]
[340079564,1728474656667,-500.0,0.00040547,30]
[340079565,1728474656677,-500.0,0.00040547,30]
[340079566,1728474656686,-500.0,0.00040547,30]
[340079567,1728474656695,-500.0,0.00040547,30]
[340079568,1728474656783,-1251.76,0.00040547,30]
[340079569,1728474656794,-500.0,0.00040547,30]
[340079570,1728474656803,-500.0,0.00040547,30]
[340079571,1728474656813,-682.14,0.00040547,30]
[340079572,1728474656822,-1200.4,0.00040547,30]
[340079573,1728474656831,-500.0,0.00040547,30]
[340079574,1728474656840,-500.0,0.00040547,30]
[340079575,1728474656850,-500.0,0.00040547,30]
[340079576,1728474656859,-500.0,0.00040547,30]
[340079577,1728474656868,-500.0,0.00040547,30]
[340079578,1728474656878,-500.0,0.00040547,30]
[340079579,1728474656887,-500.0,0.00040547,30]
[340079580,1728474656896,-500.0,0.00040547,30]
[340079581,1728474656906,-500.0,0.00040547,30]
[340079582,1728474656916,-500.0,0.00040547,30]
[340079583,1728474656926,-500.0,0.00040547,30]
[340079584,1728474656935,-500.0,0.00040547,30]
[340079585,1728474656945,-500.0,0.00040547,30]
[340079586,1728474656954,-578.02,0.00040547,30]
[340079587,1728474656964,-500.0,0.00040547,30]
[340079588,1728474656973,-701.09,0.00040547,30]
[340079589,1728474656983,-516.71435559,0.00040547,30]
[340079590,1728474656992,-500.0,0.00040547,30]
[340079591,1728474657001,-500.0,0.00040547,30]
[340079592,1728474657011,-500.0,0.00040547,30]
[340079593,1728474657020,-500.0,0.00040547,30]
[340079594,1728474657030,-500.0,0.00040547,30]
[340079595,1728474657039,-500.0,0.00040547,30]
[340079596,1728474657049,-500.0,0.00040547,30]
[340079597,1728474657058,-500.0,0.00040547,30]
[340079598,1728474657068,-500.0,0.00040547,30]
[340079599,1728474657077,-500.0,0.00040547,30]
[340079600,1728474657087,-500.0,0.00040547,30]
[340079601,1728474657098,-1129.05,0.00040547,7]
[340079602,1728474657107,-500.0,0.00040547,30]
[340079603,1728474657117,-544.2,0.00040547,30]
[340079604,1728474657126,-2326.13,0.00040547,30]
[340079605,1728474657135,-500.0,0.00040547,30]
[340079606,1728474657145,-1235.1,0.00040547,30]
[340079607,1728474657154,-535.47965394,0.00040547,30]
[340079608,1728474657164,-285.55011986,0.00040547,30]
[340079609,1728474657174,-500.0,0.00040547,30]
[340079610,1728474657183,-500.0,0.00040547,30]
[340079611,1728474657194,-776.22,0.00040547,30]
[340079612,1728474657203,-878.23,0.00040547,30]
[340079613,1728474657213,-333.2,0.00040547,30]
[340079614,1728474657223,-649.1,0.00040547,30]
[340079615,1728474657233,-500.0,0.00040547,30]
[340079616,1728474657243,-500.0,0.00040547,30]
[340079617,1728474657251,-500.0,0.00040547,30]
[340079618,1728474657265,-4280.23,0.00040547,30]
[340079619,1728474657274,-500.0,0.00040547,30]
[340079620,1728474657284,-554.85,0.00040547,30]
[340079621,1728474657293,-500.0,0.00040547,30]
[340079622,1728474657303,-1591.91,0.00040547,30]
[340079623,1728474657313,-500.0,0.00040547,30]
[340079624,1728474657322,-548.38,0.00040547,30]
[340079625,1728474657331,-500.0,0.00040547,30]
[340079626,1728474657341,-500.0,0.00040547,30]
[340079627,1728474657352,-500.0,0.00040547,30]
[340079628,1728474657361,-1790.13,0.00040547,30]
[340079629,1728474657371,-500.0,0.00040547,30]
[340079630,1728474657382,-681.86,0.00040547,30]
[340079631,1728474657391,-500.0,0.00040547,30]
[340079632,1728474657401,-843.32,0.00040547,30]
[340079633,1728474657410,-500.0,0.00040547,30]
[340079634,1728474657420,-500.0,0.00040547,30]
[340079635,1728474657429,-604.97,0.00040547,30]
[340079636,1728474657438,-500.0,0.00040547,30]
[340079637,1728474657447,-500.0,0.00040547,30]
[340079638,1728474657456,-1647.37,0.00040547,30]
[340079639,1728474657465,-677.99,0.00040547,30]
[340079640,1728474657474,-500.0,0.00040547,30]
[340079641,1728474657484,-500.0,0.00040547,30]
[340079642,1728474657493,-500.0,0.00040547,30]
[340079643,1728474657503,-500.0,0.00040547,30]
[340079644,1728474657512,-500.0,0.00040547,30]
[340079645,1728474657521,-500.0,0.00040547,30]
[340079646,1728474657530,-500.0,0.00040547,30]
[340079647,1728474657539,-500.0,0.00040547,30]
[340079648,1728474657548,-1538.29,0.00040547,30]
[340079649,1728474657558,-500.0,0.00040547,30]
[340079650,1728474657568,-500.0,0.00040547,30]
[340079651,1728474657579,-504.88323216,0.00040547,30]
[340079652,1728474657588,-500.0,0.00040547,30]
[340079653,1728474657598,-2791.23,0.00040547,30]
[340079654,1728474657607,-514.19,0.00040547,30]
[340079655,1728474657617,-500.0,0.00040547,30]
[340079656,1728474657628,-1386.33,0.00040547,30]
[340079657,1728474657638,-500.0,0.00040547,30]
[340079658,1728474657648,-700.1,0.00040547,30]
[340079659,1728474657657,-1315.33,0.00040547,30]
[340079660,1728474657666,-539.19800854,0.00040547,30]
[340079661,1728474657675,-500.0,0.00040547,30]
[340079662,1728474657686,-587.62,0.00040547,30]
[340079663,1728474657697,-440.10177254,0.00040547,30]
[340079664,1728474657707,-500.0,0.00040547,30]
[340079665,1728474657717,-500.0,0.00040547,30]
[340079666,1728474657726,-500.0,0.00040547,30]
[340079667,1728474657736,-648.89,0.00040547,30]
[340079668,1728474657746,-500.0,0.00040547,30]
[340079669,1728474657758,-500.0,0.00040547,30]
[340079670,1728474657769,-500.0,0.00040547,30]
[340079671,1728474657779,-500.0,0.00040547,30]
[340079672,1728474657788,-500.0,0.00040547,30]
[340079673,1728474657797,-2775.18,0.00040547,30]
[340079674,1728474657807,-500.0,0.00040547,2]
[340079675,1728474657816,-555.53,0.00040547,30]
[340079676,1728474657825,-500.0,0.00040547,30]
[340079677,1728474657834,-627.06,0.00040547,30]
[340079678,1728474657845,-1709.31,0.00040547,30]
[340079679,1728474657854,-500.0,0.00040547,30]
[340079680,1728474657863,-500.0,0.00040547,30]
[340079681,1728474657872,-748.87,0.00040547,30]
[340079682,1728474657881,-591.51045766,0.00040547,30]
[340079683,1728474657890,-1645.12,0.00040547,30]
[340079684,1728474657899,-500.0,0.00040547,30]
[340079685,1728474657908,-500.0,0.00040547,30]
[340079686,1728474657918,-500.0,0.00040547,30]
[340079687,1728474657927,-500.0,0.00040547,30]
[340079688,1728474657936,-500.0,0.00040547,30]
[340079689,1728474657945,-500.0,0.00040547,30]
[340079690,1728474657954,-500.0,0.00040547,30]
[340079691,1728474657964,-593.51,0.00040547,30]
[340079692,1728474657973,-500.0,0.00040547,30]
[340079693,1728474657982,-500.0,0.00040547,30]
[340079694,1728474657991,-500.0,0.00040547,7]
[340079695,1728474658001,-500.0,0.00040547,30]
[340079696,1728474658010,-500.0,0.00040547,30]